Workbook

Sheet TrigForm
D1: DeMoivre's Theorem
B3: This DIGMath module lets you investigate
D4: DeMoivre's Theorem for successive powers
D5: of a complex number
D6: z = x + yi =  z (cos q + i sin q):
D7: zn = (x + yi)n =  zn (cos nq + i sin nq)
A11: First enter the real and imaginary parts of the complex number z:
E12: x = | F12: 0.5
E13: y = | F13: 0.3
C15: so | D15: ="z = "&TEXT(x,"0.00")&" + "&TEXT(y,"0.00")&" i = " &TEXT(z,"0.000") &" (cos ("& TEXT(Q,"0.0") &") + i sin (" & TEXT(Q,"0.0") & ") )" -> z = 0.50 + 0.30 i = 0.583 (cos (31.0) + i sin (31.0) )
E16: q = | F16: =Q -> 30.96375653 | G16: °
K17: ="z = "&TEXT(x,"0.00")&" + "&TEXT(y,"0.00")&" i = " &TEXT(z,"0.000") &" (cos ("& TEXT(Q,"0.0") &") + i sin (" & TEXT(Q,"0.0") & ") )" -> z = 0.50 + 0.30 i = 0.583 (cos (31.0) + i sin (31.0) )
A18: What is the highest power n (1 to 6)? | E18: =F18+1 -> 5 | F18: 4
K19: =IF(n>=2," z^2 = (" &TEXT(z,"0.000") &")^2 (cos ("& TEXT(2*Q,"0.0") &") + i sin (" & TEXT(2*Q,"0.0") & ") )","") -> z^2 = (0.583)^2 (cos (61.9) + i sin (61.9) )
L20: =IF(n>=2," = "&TEXT(z^2,"0.000")&" (cos ("&TEXT(2*Q,"0.0")&") + i sin ("&TEXT(2*Q,"0.0")&") ) = "&TEXT(Sheet2!F3,"0.000")&" + "&TEXT(Sheet2!F4,"0.000")&"i ","") -> = 0.340 (cos (61.9) + i sin (61.9) ) = 0.210 + -0.267i
K22: =IF(n>=3," z^3 = (" &TEXT(z,"0.000") &")^3 (cos ("& TEXT(3*Q,"0.0") &") + i sin (" & TEXT(3*Q,"0.0") & ") )","") -> z^3 = (0.583)^3 (cos (92.9) + i sin (92.9) )
B23: Click each item below for suggestions and investigations | L23: =IF(n>=3," = "&TEXT(z^3,"0.000")&" (cos ("&TEXT(3*Q,"0.0")&") + i sin ("&TEXT(3*Q,"0.0")&") ) = "&TEXT(Sheet2!H3,"0.000")&" + "&TEXT(Sheet2!H4,"0.000")&"i ","") -> = 0.198 (cos (92.9) + i sin (92.9) ) = 0.042 + -0.194i
D24: Item 1
D25: Item 2 | K25: =IF(n>=4," z^4 = (" &TEXT(z,"0.000") &")^4 (cos ("& TEXT(4*Q,"0.0") &") + i sin (" & TEXT(4*Q,"0.0") & ") )","") -> z^4 = (0.583)^4 (cos (123.9) + i sin (123.9) )
D26: Item 3 | L26: =IF(n>=4," = "&TEXT(z^4,"0.000")&" (cos ("&TEXT(4*Q,"0.0")&") + i sin ("&TEXT(4*Q,"0.0")&") ) = "&TEXT(Sheet2!J3,"0.000")&" + "&TEXT(Sheet2!J4,"0.000")&"i ","") -> = 0.116 (cos (123.9) + i sin (123.9) ) = -0.027 + -0.112i
D27: Item 4
K28: =IF(n>=5," z^5 = (" &TEXT(z,"0.000") &")^5 (cos ("& TEXT(5*Q,"0.0") &") + i sin (" & TEXT(5*Q,"0.0") & ") )","") -> z^5 = (0.583)^5 (cos (154.8) + i sin (154.8) )
L29: =IF(n>=5," = "&TEXT(z^5,"0.000")&" (cos ("&TEXT(5*Q,"0.0")&") + i sin ("&TEXT(5*Q,"0.0")&") ) = "&TEXT(Sheet2!L3,"0.000")&" + "&TEXT(Sheet2!L4,"0.000")&"i ","") -> = 0.067 (cos (154.8) + i sin (154.8) ) = -0.043 + -0.052i
K31: =IF(n=6," z^6 = (" &TEXT(z,"0.000") &")^6 (cos ("& TEXT(6*Q,"0.0") &") + i sin (" & TEXT(6*Q,"0.0") & ") )","") -> 
B32: Created by: Sheldon P. Gordon | L32: =IF(n=6," = "&TEXT(z^6,"0.000")&" (cos ("&TEXT(6*Q,"0.0")&") + i sin ("&TEXT(6*Q,"0.0")&") ) = "&TEXT(Sheet2!N3,"0.000")&" + "&TEXT(Sheet2!N4,"0.000")&"i ","") -> 
B33: Farmingdale StateCollege
B34: Development of this module was supported by the
B35: NSF's Division of Undergraduate Education
B36: under grants DUE-0310123 and DUE-0442160.

Sheet Rectangular
D1: DeMoivre's Theorem
D3: This DIGMath module lets you investigate
D4: investigate the successive powers
D5: of a complex number
D6: zn = (x + yi)n
A11: First enter the real and imaginary parts of the complex number z: | E11: x = | F11: 3
E12: y = | F12: 4
D14: so | E14: ="z = "&TEXT(x,"0.00")&" + "&TEXT(y,"0.00")&" i " -> z = 0.50 + 0.30 i
J16: ="z = "&TEXT(x,"0.00")&" + "&TEXT(y,"0.00")&" i " -> z = 0.50 + 0.30 i
E17: =F17+1 -> 3 | F17: 2
A18: What is the highest power n (1 to 6)? | J18: =IF(nn>=2,"z^2 = (" &TEXT(xx,"0.000") &")^2 + 2("& TEXT(xx,"0.0") &")(" & TEXT(yy,"0.0") &") i - (" & TEXT(yy,"0.0") & ") ^2", "") -> z^2 = (3.000)^2 + 2(3.0)(4.0) i - (4.0) ^2
K19: =IF(nn>=2,"= "&TEXT(xx^2-yy^2,"0.000")&" + "&TEXT(2*xx*yy,"0.000")&" i ", "") -> = -7.000 + 24.000 i
B21: Click each item below for suggestions and investigations | J21: =IF(nn>=3,"z^3 = (" &TEXT(xx,"0.000") &")^3 + 3("& TEXT(xx,"0.000") &")^2 (" & TEXT(yy,"0.000") &") i + 3(" & TEXT(xx,"0.000") &")(" & TEXT(yy,"0.000") & ") i^2 + (" & TEXT(yy,"0.000") & ")^3 i^3", "") -> z^3 = (3.000)^3 + 3(3.000)^2 (4.000) i + 3(3.000)(4.000) i^2 + (4.000)^3 i^3
D22: Item 1 | K22: =IF(nn>=3,"= "&TEXT(xx^3-3*xx*yy^2,"0.000") &" + "&TEXT(-3*xx^2*yy+yy^3,"0.000")&" i ", "") -> = -117.000 + -44.000 i
D23: Item 2
D24: Item 3 | J24: =IF(nn>=4,"z^4 = (" &TEXT(xx,"0.000") &")^4 + 4("& TEXT(xx,"0.000") &")^3 (" & TEXT(yy,"0.000") &") i + 6(" & TEXT(xx,"0.000") &")^2 (" & TEXT(yy,"0.000") & ")^2 i^2 + 4(" & TEXT(xx,"0.000") &") (" & TEXT(yy,"0.000") & ")^3 i^3 + (" & TEXT(yy,"0.000") & ")^4 i^4", "") -> 
D25: Item 4 | K25: =IF(nn>=4,"= "&TEXT(xx^4-6*xx^2*yy^2+yy^4,"0.000") &" + "&TEXT(4*xx^3*yy- 4*xx*yy^3,"0.000")&" i ", "") -> 
J27: =IF(nn>=5,"z^5 = ("&TEXT(xx,"0.000")&")^5 + 5("&TEXT(xx,"0.000")&")^4 ("&TEXT(yy,"0.000")&") i + 10("&TEXT(xx,"0.000")&")^3 ("&TEXT(yy,"0.000")&")^2 i^2 + 10("&TEXT(xx,"0.000")&")^2 ("&TEXT(yy,"0.000")&")^3 i^3 + ("&TEXT(xx,"0.000")&") ("&TEXT(yy,"0.000")&")^4 i^4 + (" &TEXT(yy,"0.000") & ")^5 i^5", "") -> 
K28: =IF(nn>=5,"= "&TEXT(xx^5-10*xx^3*yy^2+xx*yy^4,"0.000") &" + "&TEXT(5*xx^4*yy-10*xx^2*yy^3+ yy^5,"0.000")&" i ", "") -> 
J30: =IF(nn>=6,"z^6 = ("&TEXT(xx,"0.000")&")^6 + 6("&TEXT(xx,"0.000")&")^5 ("&TEXT(yy,"0.000")&") i + 15("&TEXT(xx,"0.000")&")^4 ("&TEXT(yy,"0.000")&")^2 i^2 + 20("&TEXT(xx,"0.000")&")^3 ("&TEXT(yy,"0.000")&")^3 i^3 + ("&TEXT(xx,"0.000")&")^2 ("&TEXT(yy,"0.000")&")^4 i^4 + ("&TEXT(xx,"0.000")&") ("&TEXT(yy,"0.000")&")^5 i^5 + (" &TEXT(yy,"0.000") & ")^6 i^6", "") -> 
B31: Created by: Sheldon P. Gordon | K31: =IF(nn>=6,"= "&TEXT(xx^6-15*xx^4*yy^2+15*xx^2*yy^4-yy^6,"0.000") &" + "&TEXT(6*xx^5*yy-20*xx^3*yy^3+ 6*xx*yy^5,"0.000")&" i ", "") -> 
B32: Farmingdale StateCollege
B33: Development of this module was supported by the
B34: NSF's Division of Undergraduate Education
B35: under grants DUE-0310123 and DUE-0442160.

Sheet Non-IntegerPowers
D1: DeMoivre's Theorem
C2: This DIGMath module lets you investigate
D3: DeMoivre's Theorem for non-integer powers
D4: of a complex number
D5: z = x + yi =  z (cos q + i sin q):
D6: zn = (x + yi)n =  zn (cos nq + i sin nq)
A10: First enter the real and imaginary parts of the complex number z:
E11: x = | F11: 1
E12: y = | F12: 2
C14: so | D14: ="z = "&TEXT(x,"0.00")&" + "&TEXT(y,"0.00")&" i = " &TEXT(z,"0.000") &" (cos ("& TEXT(Q,"0.0") &") + i sin (" & TEXT(Q,"0.0") & ") )" -> z = 0.50 + 0.30 i = 0.583 (cos (31.0) + i sin (31.0) )
E15: q = | F15: =Q -> 30.96375653 | G15: °
E16:  z = | F16: =TEXT((xxx^2+yyy^2)^0.5,"0.000") -> 2.236
J17: ="z = "&TEXT(x,"0.00")&" + "&TEXT(y,"0.00")&" i = " &TEXT(z,"0.000") &" (cos ("& TEXT(Q,"0.0") &") + i sin (" & TEXT(Q,"0.0") & ") )" -> z = 0.50 + 0.30 i = 0.583 (cos (31.0) + i sin (31.0) )
A18: What is the power n (0.1 to 2.5)? | E18: =F18/10 -> 1.3 | F18: 13
J19: =" z^"&TEXT(nnn,"0.0")&" = "&TEXT(F16,"0.000")&"^" & TEXT(nnn,"0.0") & " [ cos (" & TEXT(nnn,"0.0") & "(" & TEXT(F15,"0.0") & ") ) + i sin (" & TEXT(nnn,"0.0") & "(" & TEXT(F15,"0.0") & ") ) ]" -> z^1.3 = 2.236^1.3 [ cos (1.3(31.0) ) + i sin (1.3(31.0) ) ]
K21: ="= " &TEXT(Sheet2!F34,"0.000") & " + " & TEXT(Sheet2!F35,"0.000") & " i" -> = 2.172 + 1.839 i
B23: Click each item below for suggestions and investigations
D24: Item 1
D25: Item 2
B32: Created by: Sheldon P. Gordon
B33: Farmingdale StateCollege
B34: Development of this module was supported by the
B35: NSF's Division of Undergraduate Education
B36: under grants DUE-0310123 and DUE-0442160.

Sheet Sheet2
A1: Rectangular Form
A3: x = | B3: =x -> 0.5 | D3: =x -> 0.5 | F3: =z^2*COS(2*Q) -> 0.2101895232 | H3: =z^3*COS(3*Q) -> 0.04215838927 | J3: =z^4*COS(4*Q) -> -0.02724072869 | L3: =z^5*COS(5*Q) -> -0.04290909169 | N3: =z^6*SIN(6*Q) -> -0.01633367916
A4: y = | B4: =y -> 0.3 | D4: =y -> 0.3 | F4: =z^2*SIN(2*Q) -> -0.2672458874 | H4: =z^3*SIN(3*Q) -> -0.1937180173 | J4: =z^4*SIN(4*Q) -> -0.1123445713 | L4: =z^5*SIN(5*Q) -> -0.05198415383 | N4: =z^6*COS(6*Q) -> -0.03574934043
A5: z = | B5: =(x^2+y^2)^0.5 -> 0.5830951895 | D5: v0 | F5: v1 | H5: v2 | J5: v3 | L5: v4 | N5: v5
A6: Q = | B6: =IF(x<>0,180/PI()*ATAN(y/x),IF(y>0,90,-90)) -> 30.96375653 | D6: 1 | F6: 2 | H6: 3 | J6: 4 | L6: 5 | N6: 6
A7: plotting points: | C7: 0 | D7: =D3 -> 0.5 | E7: 0 | F7: =F3 -> 0.2101895232 | G7: 0 | H7: =IF(H6<=n,H3,0) -> 0.04215838927 | I7: 0 | J7: =IF(J6<=n,J3,0) -> -0.02724072869 | K7: 0 | L7: =IF(L6<=n,L3,0) -> -0.04290909169 | M7: 0 | N7: =IF(N6<=n,N3,0) -> 0
C8: 0 | D8: =D4 -> 0.3 | E8: 0 | F8: =F4 -> -0.2672458874 | G8: 0 | H8: =IF(H6<=n,H4,0) -> -0.1937180173 | I8: 0 | J8: =IF(J6<=n,J4,0) -> -0.1123445713 | K8: 0 | L8: =IF(L6<=n,L4,0) -> -0.05198415383 | M8: 0 | N8: =IF(N6<=n,N4,0) -> 0
A10: vector points | C10: 0 | D10: =D3 -> 0.5 | E10: 0 | F10: =F3 -> 0.2101895232 | G10: =IF(H$6<=n,G7,"") -> 0 | H10: =IF(H$6<=n,H7,"") -> 0.04215838927 | I10: =IF(J$6<=n,I7,"") -> 0 | J10: =IF(J$6<=n,J7,"") -> -0.02724072869 | K10: =IF(L$6<=n,K7,"") -> 0 | L10: =IF(L$6<=n,L7,"") -> -0.04290909169 | M10: =IF(N$6<=n,M7,"") ->  | N10: =IF(N$6<=n,N7,"") -> 
C11: 0 | D11: =D4 -> 0.3 | E11: 0 | F11: =F4 -> -0.2672458874 | G11: =IF(H$6<=n,G8,"") -> 0 | H11: =IF(H$6<=n,H8,"") -> -0.1937180173 | I11: =IF(J$6<=n,I8,"") -> 0 | J11: =IF(J$6<=n,J8,"") -> -0.1123445713 | K11: =IF(L$6<=n,K8,"") -> 0 | L11: =IF(L$6<=n,L8,"") -> -0.05198415383 | M11: =IF(N$6<=n,M8,"") ->  | N11: =IF(N$6<=n,N8,"") -> 
A16: Trig Form
A18: xx = | B18: =xx -> 3 | D18: =xx -> 3 | F18: =xx^2-yy^2 -> -7 | H18: =xx^3-3*xx*yy^2 -> -117 | J18: =xx^4-6*xx^2*yy^2+yy^4 -> -527 | L18: =xx^5-10*xx^3*yy^2+xx*yy^4 -> -3309 | N18: =xx^6-15*xx^4*yy^2+15*xx^2*yy^4-yy^6 -> 11753
A19: yy = | B19: =yy -> 4 | D19: =yy -> 4 | F19: =2*xx*yy -> 24 | H19: =-3*xx^2*yy+yy^3 -> -44 | J19: =4*xx^3*yy-4*xx*yy^3 -> -336 | L19: =5*xx^4*yy-10*xx^2*yy^3+yy^5 -> -3116 | N19: =6*xx^5*yy-20*xx^3*yy^3+6*xx*yy^5 -> -10296
A20: z = | B20: =(x^2+y^2)^0.5 -> 0.5830951895 | D20: v0 | F20: v1 | H20: v2 | J20: v3 | L20: v4 | N20: v5
A21: Q = | B21: =IF(x<>0,180/PI()*ATAN(y/x),IF(y>0,90,-90)) -> 30.96375653 | D21: 1 | F21: 2 | H21: 3 | J21: 4 | L21: 5 | N21: 6
A22: plotting points: | C22: 0 | D22: =D18 -> 3 | E22: 0 | F22: =F18 -> -7 | G22: 0 | H22: =IF(H21<=nn,H18,0) -> -117 | I22: 0 | J22: =IF(J21<=nn,J18,0) -> 0 | K22: 0 | L22: =IF(L21<=nn,L18,0) -> 0 | M22: 0 | N22: =IF(N21<=nn,N18,0) -> 0
C23: 0 | D23: =D19 -> 4 | E23: 0 | F23: =F19 -> 24 | G23: 0 | H23: =IF(H21<=nn,H19,0) -> -44 | I23: 0 | J23: =IF(J21<=nn,J19,0) -> 0 | K23: 0 | L23: =IF(L21<=nn,L19,0) -> 0 | M23: 0 | N23: =IF(N21<=nn,N19,0) -> 0
A25: vector points | C25: 0 | D25: =D18 -> 3 | E25: 0 | F25: =F18 -> -7 | G25: =IF(H$6<=n,G22,"") -> 0 | H25: =IF(H$6<=nn,H22,"") -> -117 | I25: =IF(J$6<=n,I22,"") -> 0 | J25: =IF(J$6<=nn,J22,"") ->  | K25: =IF(L$6<=n,K22,"") -> 0 | L25: =IF(L$6<=nn,L22,"") ->  | M25: =IF(N$6<=n,M22,"") ->  | N25: =IF(N$6<=nn,N22,"") -> 
C26: 0 | D26: =D19 -> 4 | E26: 0 | F26: =F19 -> 24 | G26: =IF(H$6<=n,G23,"") -> 0 | H26: =IF(H$6<=nn,H23,"") -> -44 | I26: =IF(J$6<=n,I23,"") -> 0 | J26: =IF(J$6<=nn,J23,"") ->  | K26: =IF(L$6<=n,K23,"") -> 0 | L26: =IF(L$6<=nn,L23,"") ->  | M26: =IF(N$6<=n,M23,"") ->  | N26: =IF(N$6<=nn,N23,"") -> 
A32: Non-Integer Powers | N32:  z
A34: xxx= | D34: =xxx -> 1 | F34: ='Non-IntegerPowers'!F$16^nnn*COS(nnn*'Non-IntegerPowers'!F$15*PI()/180) -> 2.172459422
A35: yyy = | D35: =yyy -> 2 | F35: ='Non-IntegerPowers'!F$16^nnn*SIN(nnn*'Non-IntegerPowers'!F$15*PI()/180) -> 1.839310351
D37: 1 | F37: 2
A38: plotting points: | C38: 0 | D38: =D34 -> 1 | E38: 0 | F38: =F34 -> 2.172459422
C39: 0 | D39: =D35 -> 2 | E39: 0 | F39: =F35 -> 1.839310351
